[Event "Live Chess"]
[Site "Chess.com"]
[Date "2023.05.21"]
[Round "-"]
[White "LiamClery2020"]
[Black "peter-785"]
[Result "0-1"]
[WhiteElo "2028"]
[BlackElo "1194"]
[TimeControl "300"]
[EndTime "17:11:41 PDT"]
[Termination "peter-785 won by checkmate"]

1. e4 {[%clk 0:04:59.2]} 1... c5 {[%clk 0:04:58.7]} 2. Nf3 {[%clk 0:04:58.1]}
2... d6 {[%clk 0:04:56.9]} 3. Bb5+ {[%clk 0:04:57.4]} 3... Nd7 {[%clk
0:04:54.5]} 4. Bxd7+ {[%clk 0:04:55.6]} 4... Bxd7 {[%clk 0:04:47]} 5. O-O {[%clk
0:04:55.5]} 5... e6 {[%clk 0:04:45.1]} 6. Re1 {[%clk 0:04:53.7]} 6... Nf6 {[%clk
0:04:44.5]} 7. c3 {[%clk 0:04:52.6]} 7... Be7 {[%clk 0:04:43.6]} 8. d4 {[%clk
0:04:52.3]} 8... cxd4 {[%clk 0:04:40.7]} 9. cxd4 {[%clk 0:04:52.2]} 9... O-O
{[%clk 0:04:36.5]} 10. Nc3 {[%clk 0:04:49.3]} 10... a6 {[%clk 0:04:33.4]} 11.
Be3 {[%clk 0:04:46.9]} 11... b5 {[%clk 0:04:31.7]} 12. a3 {[%clk 0:04:45.8]}
12... Rc8 {[%clk 0:04:30.2]} 13. Qd2 {[%clk 0:04:45.1]} 13... Ng4 {[%clk
0:04:11.8]} 14. Bf4 {[%clk 0:04:43.7]} 14... Qb6 {[%clk 0:03:46.5]} 15. h3
{[%clk 0:04:40.9]} 15... Nf6 {[%clk 0:03:44.7]} 16. e5 {[%clk 0:04:38.7]} 16...
dxe5 {[%clk 0:03:42.4]} 17. Nxe5 {[%clk 0:04:37.2]} 17... Bc6 {[%clk 0:03:29.8]}
18. Nxc6 {[%clk 0:04:30.5]} 18... Rxc6 {[%clk 0:03:19.7]} 19. d5 {[%clk
0:04:26.8]} 19... Rxc3 {[%clk 0:02:36.3]} 20. Qxc3 {[%clk 0:04:17.7]} 20... Nxd5
{[%clk 0:02:34.5]} 21. Qf3 {[%clk 0:04:17]} 21... Bf6 {[%clk 0:02:19.6]} 22.
Rab1 {[%clk 0:04:13.5]} 22... Rc8 {[%clk 0:01:58.4]} 23. Rec1 {[%clk 0:04:09.4]}
23... Rd8 {[%clk 0:01:50.9]} 24. Rd1 {[%clk 0:03:53.7]} 24... Rc8 {[%clk
0:01:30.6]} 25. Be3 {[%clk 0:03:50.3]} 25... Qc7 {[%clk 0:01:20.9]} 26. Rbc1
{[%clk 0:03:47.4]} 26... Qb7 {[%clk 0:01:17.8]} 27. Rxc8+ {[%clk 0:03:45.1]}
27... Qxc8 {[%clk 0:01:17.2]} 28. Rc1 {[%clk 0:03:39.6]} 28... Qe8 {[%clk
0:01:10.4]} 29. Qe2 {[%clk 0:03:38.2]} 29... h6 {[%clk 0:01:06.7]} 30. Qc2
{[%clk 0:03:35.2]} 30... Nxe3 {[%clk 0:00:59]} 31. fxe3 {[%clk 0:03:35.1]} 31...
g6 {[%clk 0:00:52.7]} 32. b4 {[%clk 0:03:31.6]} 32... Kg7 {[%clk 0:00:49.2]} 33.
Qb2 {[%clk 0:03:30.3]} 33... Bxb2 {[%clk 0:00:46.6]} 34. Rc7 {[%clk 0:03:27.2]}
34... Bxa3 {[%clk 0:00:43.8]} 35. Ra7 {[%clk 0:03:25.9]} 35... Qc8 {[%clk
0:00:40]} 36. Kh2 {[%clk 0:03:24.6]} 36... Bxb4 {[%clk 0:00:39.1]} 37. g3 {[%clk
0:03:20.3]} 37... Bd2 {[%clk 0:00:37.1]} 38. e4 {[%clk 0:03:16.6]} 38... Qb8
{[%clk 0:00:35.8]} 39. Rd7 {[%clk 0:03:15.4]} 39... Be3 {[%clk 0:00:31.7]} 40.
Kg2 {[%clk 0:03:13]} 40... Qa8 {[%clk 0:00:30.1]} 41. Kf3 {[%clk 0:03:12]} 41...
Bc1 {[%clk 0:00:26.8]} 42. Rd3 {[%clk 0:03:11.3]} 42... Bb2 {[%clk 0:00:25.7]}
43. Re3 {[%clk 0:03:08.9]} 43... e5 {[%clk 0:00:23.1]} 44. Re2 {[%clk
0:03:08.3]} 44... Bd4 {[%clk 0:00:22.3]} 45. g4 {[%clk 0:03:07.2]} 45... b4
{[%clk 0:00:21.5]} 46. h4 {[%clk 0:03:05.7]} 46... Qb8 {[%clk 0:00:18.6]} 47. g5
{[%clk 0:03:03.5]} 47... hxg5 {[%clk 0:00:16.7]} 48. hxg5 {[%clk 0:03:03.4]}
48... b3 {[%clk 0:00:15]} 49. Re1 {[%clk 0:03:03]} 49... b2 {[%clk 0:00:14.1]}
50. Rb1 {[%clk 0:03:02.5]} 50... Qb3+ {[%clk 0:00:12.4]} 51. Ke2 {[%clk
0:02:59.3]} 51... Qc2+ {[%clk 0:00:11.9]} 52. Kf3 {[%clk 0:02:58.8]} 52... Qxb1
{[%clk 0:00:11.4]} 53. Kg4 {[%clk 0:02:58.7]} 53... Qc1 {[%clk 0:00:10.9]} 54.
Kf3 {[%clk 0:02:58.6]} 54... b1=Q {[%clk 0:00:09.8]} 55. Kg3 {[%clk 0:02:57.4]}
55... Qe3+ {[%clk 0:00:09.2]} 56. Kg4 {[%clk 0:02:56.8]} 56... Qbg1+ {[%clk
0:00:08.4]} 57. Kh4 {[%clk 0:02:55.9]} 57... Qeg3# {[%clk 0:00:05.3]} 0-1

[Event "Live Chess"]
[Site "Chess.com"]
[Date "2023.05.21"]
[Round "-"]
[White "jimwad"]
[Black "alanmike75"]
[Result "1-0"]
[WhiteElo "1254"]
[BlackElo "1552"]
[TimeControl "300"]
[EndTime "17:11:45 PDT"]
[Termination "jimwad won by resignation"]

1. c4 {[%clk 0:04:58.8]} 1... e5 {[%clk 0:04:58.4]} 2. g3 {[%clk 0:04:57]} 2...
Nf6 {[%clk 0:04:57.1]} 3. Bg2 {[%clk 0:04:56.3]} 3... d5 {[%clk 0:04:55.3]} 4.
cxd5 {[%clk 0:04:54.9]} 4... Nxd5 {[%clk 0:04:54.3]} 5. Nc3 {[%clk 0:04:51.7]}
5... Be6 {[%clk 0:04:49.6]} 6. e4 {[%clk 0:04:49.6]} 6... Nxc3 {[%clk
0:04:47.3]} 7. bxc3 {[%clk 0:04:48.6]} 7... Nc6 {[%clk 0:04:45.6]} 8. Nf3 {[%clk
0:04:46.7]} 8... Bd6 {[%clk 0:04:44.2]} 9. O-O {[%clk 0:04:44.9]} 9... O-O
{[%clk 0:04:43.1]} 10. d4 {[%clk 0:04:43.1]} 10... Bd7 {[%clk 0:04:36.4]} 11. d5
{[%clk 0:04:41.5]} 11... Ne7 {[%clk 0:04:34.5]} 12. c4 {[%clk 0:04:39.8]} 12...
c5 {[%clk 0:04:31.8]} 13. Rb1 {[%clk 0:04:31.4]} 13... b6 {[%clk 0:04:30.5]} 14.
Bg5 {[%clk 0:04:23.7]} 14... f6 {[%clk 0:04:27.8]} 15. Bd2 {[%clk 0:04:16.1]}
15... Qc8 {[%clk 0:04:24]} 16. Qe2 {[%clk 0:04:11.5]} 16... Bh3 {[%clk
0:04:20.7]} 17. Nh4 {[%clk 0:04:09.3]} 17... Bxg2 {[%clk 0:04:18.3]} 18. Kxg2
{[%clk 0:04:08]} 18... g5 {[%clk 0:04:14.2]} 19. Nf3 {[%clk 0:04:02.1]} 19...
Ng6 {[%clk 0:04:10.4]} 20. h3 {[%clk 0:03:59.1]} 20... h6 {[%clk 0:04:08.4]} 21.
Nh2 {[%clk 0:03:57.4]} 21... Kg7 {[%clk 0:04:05.4]} 22. Ng4 {[%clk 0:03:48.5]}
22... f5 {[%clk 0:03:52.4]} 23. exf5 {[%clk 0:03:46]} 23... Qxf5 {[%clk
0:03:50.5]} 24. Ne3 {[%clk 0:03:36.4]} 24... Qf7 {[%clk 0:03:40.3]} 25. g4
{[%clk 0:03:34.5]} 25... Rae8 {[%clk 0:03:38.1]} 26. Nf5+ {[%clk 0:03:32.1]}
26... Kh7 {[%clk 0:03:21.4]} 27. Nxd6 {[%clk 0:03:30.3]} 27... Nf4+ {[%clk
0:03:20.1]} 28. Bxf4 {[%clk 0:03:28.3]} 28... Qxf4 {[%clk 0:03:16.5]} 29. Nxe8
{[%clk 0:03:23]} 29... Rxe8 {[%clk 0:03:15.4]} 1-0

[Event "Live Chess"]
[Site "Chess.com"]
[Date "2023.05.21"]
[Round "-"]
[White "laminaaprod"]
[Black "Long1968"]
[Result "1-0"]
[WhiteElo "2227"]
[BlackElo "1130"]
[TimeControl "300"]
[EndTime "17:11:46 PDT"]
[Termination "laminaaprod won on time"]

1. e4 {[%clk 0:04:51.6]} 1... e6 {[%clk 0:04:58.3]} 2. Nf3 {[%clk 0:04:33.2]}
2... d5 {[%clk 0:04:55.7]} 3. exd5 {[%clk 0:04:25.3]} 3... exd5 {[%clk
0:04:53.3]} 4. d4 {[%clk 0:04:24.2]} 4... Nf6 {[%clk 0:04:49.1]} 5. Bd3 {[%clk
0:04:23.2]} 5... Bg4 {[%clk 0:04:45.2]} 6. O-O {[%clk 0:04:21.7]} 6... Be7
{[%clk 0:04:42.3]} 7. Re1 {[%clk 0:04:17.3]} 7... O-O {[%clk 0:04:40.1]} 8. c3
{[%clk 0:04:09.6]} 8... Nbd7 {[%clk 0:04:36.6]} 9. Nbd2 {[%clk 0:04:08.2]} 9...
c5 {[%clk 0:04:32]} 10. Nf1 {[%clk 0:04:06.6]} 10... Re8 {[%clk 0:04:21.8]} 11.
Bf4 {[%clk 0:03:53.8]} 11... Nh5 {[%clk 0:04:08.1]} 12. Bg3 {[%clk 0:03:43.4]}
12... Nxg3 {[%clk 0:04:04.2]} 13. Nxg3 {[%clk 0:03:40.2]} 13... Nf6 {[%clk
0:03:53]} 14. dxc5 {[%clk 0:03:35.8]} 14... Bxc5 {[%clk 0:03:48.4]} 15. Rxe8+
{[%clk 0:03:29.1]} 15... Qxe8 {[%clk 0:03:41.6]} 16. h3 {[%clk 0:03:29]} 16...
Bh5 {[%clk 0:03:37.2]} 17. Nxh5 {[%clk 0:03:26.5]} 17... Nxh5 {[%clk 0:03:33.1]}
18. Qc2 {[%clk 0:03:15.6]} 18... Nf6 {[%clk 0:03:26.4]} 19. Rd1 {[%clk
0:03:04.4]} 19... Ne4 {[%clk 0:02:51]} 20. Re1 {[%clk 0:02:36.5]} 20... Bxf2+
{[%clk 0:01:58.6]} 21. Qxf2 {[%clk 0:02:28.6]} 21... Nxf2 {[%clk 0:01:55.8]} 22.
Rxe8+ {[%clk 0:02:26.4]} 22... Rxe8 {[%clk 0:01:51.5]} 23. Kxf2 {[%clk
0:02:25.4]} 23... Kf8 {[%clk 0:01:45]} 24. Nd4 {[%clk 0:02:01.4]} 24... a6
{[%clk 0:01:37.2]} 25. Be2 {[%clk 0:01:47.9]} 25... b5 {[%clk 0:01:25.2]} 26.
Bf3 {[%clk 0:01:37.5]} 26... Rd8 {[%clk 0:01:16.7]} 27. Ke3 {[%clk 0:01:27.9]}
27... g6 {[%clk 0:01:01.7]} 28. Nc6 {[%clk 0:01:15.8]} 28... Rd6 {[%clk
0:00:52.6]} 29. Nb4 {[%clk 0:01:11.8]} 29... a5 {[%clk 0:00:15.8]} 30. Nxd5
{[%clk 0:01:09.6]} 30... f5 {[%clk 0:00:05.9]} 31. Kd4 {[%clk 0:01:07.9]} 1-0

[Event "Live Chess"]
[Site "Chess.com"]
[Date "2023.05.21"]
[Round "-"]
[White "Ed_Knox"]
[Black "NAZRIZ1977"]
[Result "1/2-1/2"]
[WhiteElo "1481"]
[BlackElo "1999"]
[TimeControl "300"]
[EndTime "17:11:51 PDT"]
[Termination "Game drawn by repetition"]

1. d4 {[%clk 0:04:53.5]} 1... Nf6 {[%clk 0:04:58.9]} 2. Bf4 {[%clk 0:04:52.6]}
2... d5 {[%clk 0:04:57.7]} 3. e3 {[%clk 0:04:51.8]} 3... g6 {[%clk 0:04:57.3]}
4. Nf3 {[%clk 0:04:50.2]} 4... Bg7 {[%clk 0:04:56.7]} 5. Nc3 {[%clk 0:04:49.1]}
5... O-O {[%clk 0:04:56.2]} 6. Qd2 {[%clk 0:04:47.9]} 6... c5 {[%clk 0:04:55.5]}
7. dxc5 {[%clk 0:04:46.1]} 7... Nc6 {[%clk 0:04:54.6]} 8. O-O-O {[%clk
0:04:44.7]} 8... Bf5 {[%clk 0:04:53.1]} 9. Bd3 {[%clk 0:04:36.9]} 9... Bg4
{[%clk 0:04:49.6]} 10. Be2 {[%clk 0:04:32.8]} 10... Qa5 {[%clk 0:04:47.7]} 11.
Kb1 {[%clk 0:04:25.6]} 11... e6 {[%clk 0:04:46.2]} 12. h3 {[%clk 0:04:18]} 12...
Bxf3 {[%clk 0:04:44.1]} 13. Bxf3 {[%clk 0:04:17.1]} 13... b6 {[%clk 0:04:42]}
14. Bd6 {[%clk 0:04:10]} 14... bxc5 {[%clk 0:04:36.4]} 15. Bxf8 {[%clk
0:04:07.5]} 15... Rxf8 {[%clk 0:04:35.8]} 16. Rhe1 {[%clk 0:03:37.6]} 16... Rb8
{[%clk 0:04:33.5]} 17. b3 {[%clk 0:03:05.4]} 17... Nb4 {[%clk 0:04:23.6]} 18. e4
{[%clk 0:02:31.2]} 18... d4 {[%clk 0:04:20.2]} 19. Na4 {[%clk 0:02:06.4]} 19...
Nd7 {[%clk 0:04:17]} 20. a3 {[%clk 0:02:01.6]} 20... d3 {[%clk 0:04:08.3]} 21.
axb4 {[%clk 0:01:52.4]} 21... Rxb4 {[%clk 0:03:55.3]} 22. Qxd3 {[%clk
0:01:29.6]} 22... Qxa4 {[%clk 0:03:47.7]} 23. e5 {[%clk 0:01:27.7]} 23... Nxe5
{[%clk 0:03:32.1]} 24. Qd8+ {[%clk 0:01:22.5]} 24... Bf8 {[%clk 0:03:30.8]} 25.
Rxe5 {[%clk 0:01:20.6]} 25... Rxb3+ {[%clk 0:03:12.8]} 26. cxb3 {[%clk
0:01:19.1]} 26... Qxb3+ {[%clk 0:03:12.3]} 27. Kc1 {[%clk 0:01:17.9]} 27... Qc3+
{[%clk 0:03:10.6]} 28. Kb1 {[%clk 0:01:07.5]} 28... Qb3+ {[%clk 0:03:06.8]} 29.
Kc1 {[%clk 0:01:05.9]} 29... Qc3+ {[%clk 0:03:06.2]} 30. Kb1 {[%clk 0:01:05]}
30... Qb3+ {[%clk 0:03:06.1]} 1/2-1/2

[Event "Live Chess"]
[Site "Chess.com"]
[Date "2023.05.21"]
[Round "-"]
[White "Doge_Dandolo"]
[Black "Conradical12"]
[Result "0-1"]
[WhiteElo "1967"]
[BlackElo "1604"]
[TimeControl "300"]
[EndTime "17:11:56 PDT"]
[Termination "Conradical12 won by checkmate"]

1. Nf3 {[%clk 0:04:57.4]} 1... Nc6 {[%clk 0:04:57.6]} 2. e4 {[%clk 0:04:55.4]}
2... e5 {[%clk 0:04:57.1]} 3. Bc4 {[%clk 0:04:54.4]} 3... Nf6 {[%clk 0:04:56.4]}
4. Ng5 {[%clk 0:04:52.7]} 4... d5 {[%clk 0:04:55.8]} 5. exd5 {[%clk 0:04:51.6]}
5... Na5 {[%clk 0:04:55.7]} 6. Bb5+ {[%clk 0:04:49.3]} 6... c6 {[%clk
0:04:55.2]} 7. dxc6 {[%clk 0:04:48.6]} 7... bxc6 {[%clk 0:04:55.1]} 8. Qf3
{[%clk 0:04:47.8]} 8... Be7 {[%clk 0:04:52.6]} 9. Nc3 {[%clk 0:04:41.9]} 9...
Bg4 {[%clk 0:04:42.8]} 10. Bxc6+ {[%clk 0:04:19.8]} 10... Nxc6 {[%clk
0:04:37.8]} 11. Qxc6+ {[%clk 0:04:18.1]} 11... Bd7 {[%clk 0:04:37.4]} 12. Qf3
{[%clk 0:04:13.2]} 12... O-O {[%clk 0:04:34.2]} 13. d3 {[%clk 0:04:06.2]} 13...
Ng4 {[%clk 0:04:27.2]} 14. h3 {[%clk 0:03:59.7]} 14... Nxf2 {[%clk 0:04:19.6]}
15. Nxh7 {[%clk 0:03:51.9]} 15... Nxh1 {[%clk 0:04:12.8]} 16. Nxf8 {[%clk
0:03:49.5]} 16... Bh4+ {[%clk 0:04:11.4]} 17. Kd1 {[%clk 0:03:46.5]} 17... Qxf8
{[%clk 0:04:05.4]} 18. Ne4 {[%clk 0:03:44]} 18... f5 {[%clk 0:04:00.4]} 19. Nc3
{[%clk 0:03:41.1]} 19... Be6 {[%clk 0:03:48.9]} 20. Be3 {[%clk 0:03:37.1]} 20...
e4 {[%clk 0:03:46.6]} 21. dxe4 {[%clk 0:03:34.1]} 21... Rd8+ {[%clk 0:03:43.9]}
22. Kc1 {[%clk 0:03:29.3]} 22... Qd6 {[%clk 0:03:23.8]} 23. exf5 {[%clk
0:03:15.4]} 23... Bxf5 {[%clk 0:02:59.4]} 24. Qxf5 {[%clk 0:03:11.9]} 24... Nf2
{[%clk 0:02:58.9]} 25. a4 {[%clk 0:03:02.1]} 25... Qd1+ {[%clk 0:02:51.1]} 26.
Nxd1 {[%clk 0:02:58.3]} 26... Rxd1# {[%clk 0:02:51]} 0-1

[Event "Live Chess"]
[Site "Chess.com"]
[Date "2023.05.21"]
[Round "-"]
[White "AbilifyXL"]
[Black "flyingpuffins"]
[Result "0-1"]
[WhiteElo "1944"]
[BlackElo "1965"]
[TimeControl "300"]
[EndTime "17:11:58 PDT"]
[Termination "flyingpuffins won by resignation"]

1. d4 {[%clk 0:04:58.8]} 1... d5 {[%clk 0:04:58.8]} 2. c4 {[%clk 0:04:57.9]}
2... c6 {[%clk 0:04:58.2]} 3. Nc3 {[%clk 0:04:55.7]} 3... Nf6 {[%clk 0:04:57.8]}
4. cxd5 {[%clk 0:04:54.7]} 4... cxd5 {[%clk 0:04:56.9]} 5. Nf3 {[%clk
0:04:54.6]} 5... Nc6 {[%clk 0:04:55]} 6. Bg5 {[%clk 0:04:54.2]} 6... Ne4 {[%clk
0:04:52.9]} 7. Bf4 {[%clk 0:04:53.1]} 7... Qb6 {[%clk 0:04:50]} 8. Bc1 {[%clk
0:04:43.7]} 8... Nxc3 {[%clk 0:04:43.2]} 9. bxc3 {[%clk 0:04:42.6]} 9... Bf5
{[%clk 0:04:42.5]} 10. e3 {[%clk 0:04:41.4]} 10... e6 {[%clk 0:04:41.5]} 11. Bd3
{[%clk 0:04:39.7]} 11... Bg4 {[%clk 0:04:40.6]} 12. h3 {[%clk 0:04:36.7]} 12...
Bh5 {[%clk 0:04:39.4]} 13. O-O {[%clk 0:04:35.4]} 13... Bd6 {[%clk 0:04:37.8]}
14. e4 {[%clk 0:04:33.4]} 14... dxe4 {[%clk 0:04:33.6]} 15. Bxe4 {[%clk
0:04:31.6]} 15... O-O {[%clk 0:04:32.7]} 16. Be3 {[%clk 0:04:28.2]} 16... Qc7
{[%clk 0:04:27.1]} 17. c4 {[%clk 0:04:25]} 17... Ne7 {[%clk 0:04:24.9]} 18. c5
{[%clk 0:04:23.6]} 18... Bf4 {[%clk 0:04:23.9]} 19. Qd2 {[%clk 0:04:17.4]} 19...
Bxe3 {[%clk 0:04:17.8]} 20. Qxe3 {[%clk 0:04:16.5]} 20... Rfd8 {[%clk
0:04:16.7]} 21. Rab1 {[%clk 0:04:14.8]} 21... Nd5 {[%clk 0:04:06.9]} 22. Bxd5
{[%clk 0:04:12.9]} 22... Rxd5 {[%clk 0:04:03.2]} 23. Rb4 {[%clk 0:04:06.5]}
23... Bxf3 {[%clk 0:04:01]} 24. Qxf3 {[%clk 0:04:05.2]} 24... Rad8 {[%clk
0:03:59.2]} 25. Qe3 {[%clk 0:03:57]} 25... g6 {[%clk 0:03:50.7]} 26. Rfb1 {[%clk
0:03:55.6]} 26... R8d7 {[%clk 0:03:46.8]} 27. a4 {[%clk 0:03:51.3]} 27... Qc6
{[%clk 0:03:24.5]} 28. a5 {[%clk 0:03:40.9]} 28... Qa6 {[%clk 0:03:18.3]} 29. h4
{[%clk 0:03:31.7]} 29... Qxa5 {[%clk 0:03:01.5]} 30. Rxb7 {[%clk 0:03:28.7]}
30... Rxd4 {[%clk 0:03:00.8]} 31. Rxd7 {[%clk 0:03:20.2]} 31... Rxd7 {[%clk
0:02:59.2]} 32. Qe5 {[%clk 0:03:11.2]} 32... Rd8 {[%clk 0:02:32.5]} 33. Rb8
{[%clk 0:03:06.9]} 33... Rxb8 {[%clk 0:02:25.7]} 34. Qxb8+ {[%clk 0:03:05.7]}
34... Kg7 {[%clk 0:02:25.6]} 35. Qe5+ {[%clk 0:03:03.7]} 35... Kh6 {[%clk
0:02:18.1]} 36. Qd6 {[%clk 0:02:55.4]} 36... Qe1+ {[%clk 0:02:12.9]} 37. Kh2
{[%clk 0:02:54.4]} 37... a5 {[%clk 0:01:47.8]} 38. Qf4+ {[%clk 0:02:49.3]} 38...
Kg7 {[%clk 0:01:46.2]} 39. c6 {[%clk 0:02:47.5]} 39... Qc3 {[%clk 0:01:39.4]}
40. c7 {[%clk 0:02:45.7]} 40... a4 {[%clk 0:01:38.3]} 41. Qd6 {[%clk 0:02:35.8]}
41... a3 {[%clk 0:01:34.6]} 42. f4 {[%clk 0:02:34.5]} 42... a2 {[%clk 0:01:27]}
43. Qe5+ {[%clk 0:02:33.7]} 43... Qxe5 {[%clk 0:01:24.8]} 44. fxe5 {[%clk
0:02:32.9]} 44... a1=Q {[%clk 0:01:23.5]} 45. c8=Q {[%clk 0:02:32.1]} 45...
Qxe5+ {[%clk 0:01:22.6]} 46. Kg1 {[%clk 0:02:31.2]} 46... Qe1+ {[%clk
0:01:17.6]} 47. Kh2 {[%clk 0:02:30.2]} 47... Qxh4+ {[%clk 0:01:17.1]} 48. Kg1
{[%clk 0:02:29.4]} 48... Qd4+ {[%clk 0:01:15.7]} 49. Kh2 {[%clk 0:02:27.9]}
49... Qd6+ {[%clk 0:01:14.3]} 50. Kg1 {[%clk 0:02:26.6]} 50... Qd5 {[%clk
0:01:13.6]} 51. Qc3+ {[%clk 0:02:24.6]} 51... e5 {[%clk 0:01:11.7]} 52. Qc7
{[%clk 0:02:21]} 52... Qd4+ {[%clk 0:01:10]} 53. Kh2 {[%clk 0:02:19.8]} 53... e4
{[%clk 0:01:07.1]} 54. Qe7 {[%clk 0:02:18.5]} 54... e3 {[%clk 0:01:02.7]} 55.
Kg3 {[%clk 0:02:17.4]} 55... h5 {[%clk 0:00:54.5]} 0-1